bitfinex/quotes_SOLUSD_20241123
["timestamp","ask_amount","ask_price","bid_price","bid_amount"]
[1732383849877,106.64542619,257.12,257.11,33.24942905]
[1732383850387,105.09542619,257.12,257.11,33.24942905]
[1732383850565,27.55201634,257.12,257.11,55.35452905]
[1732383850764,8.00131224,257.12,257.11,63.19591272]
[1732383850964,7.53097726,257.28,257.12,10.0]
[1732383851164,7.53097726,257.28,257.2,7.53097726]
[1732383852285,20.0,257.27,257.2,7.53097726]
[1732383852879,7.53097726,257.26,257.12,9.48248789]
[1732383853085,7.53097726,257.22,257.13,23.776884]
[1732383853265,20.0,257.21,257.14,7.53097726]
[1732383853587,20.0,257.21,257.15,23.776884]
[1732383853960,20.0,257.2,257.13,23.776884]
[1732383854163,20.0,257.2,257.13,31.30786126]
[1732383854466,20.0,257.2,257.16,23.776884]
[1732383854680,20.0,257.23,257.16,23.776884]
[1732383856190,20.0,257.23,257.17,7.53097726]
[1732383856681,7.53097726,257.26,257.17,7.53097726]
[1732383856876,20.0,257.25,257.17,7.53097726]
[1732383857270,20.0,257.25,257.16,23.776884]
[1732383857271,20.0,257.25,257.19,7.53097726]
[1732383857468,20.0,257.26,257.19,7.53097726]
[1732383858379,20.0,257.3,257.19,7.53097726]
[1732383858583,20.0,257.27,257.19,7.53097726]
[1732383861196,20.0,257.21,257.15,23.776884]
[1732383861870,7.53097726,257.24,257.15,23.776884]
[1732383862071,7.53097726,257.24,257.16,7.53097726]
[1732383862263,20.0,257.23,257.17,23.776884]
[1732383862470,20.0,257.3,257.2,7.53097726]
[1732383862795,20.0,257.27,257.2,7.53097726]
[1732383867881,20.0,257.27,257.21,7.53097726]
[1732383868094,27.53097726,257.28,257.2,7.53097726]
[1732383869285,27.53097726,257.28,257.19,7.53097726]
[1732383869286,7.53097726,257.27,257.19,7.53097726]
[1732383869600,20.0,257.26,257.2,7.53097726]
[1732383870181,27.53097726,257.28,257.17,28.77159367]
[1732383870394,7.53097726,257.26,257.19,7.53097726]
[1732383870572,20.0,257.25,257.19,7.53097726]
[1732383872102,20.0,257.26,257.19,7.53097726]
[1732383872472,27.53097726,257.26,257.19,7.53097726]
[1732383873495,27.53097726,257.26,257.18,7.53097726]
[1732383873675,27.53097726,257.26,257.19,23.776884]
[1732383874078,20.0,257.26,257.19,7.53097726]
[1732383874883,27.53097726,257.26,257.18,31.30786126]
[1732383875492,20.0,257.26,257.19,7.53097726]
[1732383875678,27.53097726,257.26,257.18,31.30786126]
[1732383875991,7.53097726,257.26,257.18,31.30786126]
[1732383876882,7.53097726,257.25,257.18,23.776884]
[1732383878088,20.0,257.3,257.18,23.776884]
[1732383878290,7.53097726,257.26,257.18,23.776884]
[1732383880507,7.03097726,257.26,257.18,23.776884]
[1732383882206,20.0,257.3,257.2,7.53097726]
[1732383882207,7.53097726,257.28,257.2,7.53097726]
[1732383882406,7.53097726,257.28,257.21,23.776884]
[1732383883307,16.4765,257.37,257.26,7.53097726]
[1732383883616,7.53097726,257.33,257.25,7.53097726]
[1732383884102,7.53097726,257.32,257.25,7.53097726]
[1732383884285,16.4765,257.37,257.26,23.776884]
[1732383884610,7.53097726,257.32,257.26,23.776884]
[1732383885310,7.53097726,257.32,257.25,23.776884]
[1732383885989,7.53097726,257.31,257.25,23.776884]
[1732383886385,16.4765,257.37,257.27,31.30786126]
[1732383886598,7.53097726,257.33,257.27,23.776884]
[1732383886785,7.53097726,257.32,257.27,23.776884]
[1732383886993,7.53097726,257.32,257.25,31.30786126]
[1732383888103,7.53097726,257.32,257.25,23.776884]
[1732383888511,7.53097726,257.31,257.25,23.776884]
[1732383888691,7.53097726,257.31,257.23,7.53097726]
[1732383888894,7.53097726,257.31,257.23,31.30786126]
[1732383889113,7.53097726,257.3,257.23,31.30786126]
[1732383889290,7.53097726,257.28,257.23,23.776884]
[1732383890297,7.53097726,257.29,257.23,23.776884]
[1732383894612,20.0,257.36,257.24,7.53097726]
[1732383894810,7.53097726,257.32,257.25,23.776884]
[1732383895012,7.53097726,257.3,257.25,23.776884]
[1732383895312,20.0,257.39,257.27,23.776884]
[1732383895511,7.53097726,257.29,257.25,28.77159367]
[1732383897902,20.0,257.28,257.25,28.77159367]
[1732383898109,30.12390904,257.4,257.2,30.01823143]
[1732383898110,20.0,257.26,257.2,22.248]
[1732383898314,7.53097726,257.23,257.2,16.2365]
[1732383899501,7.53097726,257.23,257.21,23.776884]
[1732383899710,7.53097726,257.25,257.21,23.776884]
[1732383899909,20.0,257.33,257.21,23.776884]
[1732383900110,7.53097726,257.25,257.21,23.776884]
[1732383901122,7.53097726,257.23,257.21,23.776884]
[1732383901329,7.53097726,257.23,257.14,22.6611]
[1732383901509,7.53097726,257.21,257.14,22.6611]
[1732383901700,7.53097726,257.19,257.14,16.3612]
[1732383902710,7.53097726,257.19,257.11,4.72010841]
[1732383902711,7.53097726,257.17,257.11,4.72010841]
[1732383903110,7.53097726,257.13,257.11,4.72010841]
[1732383903722,7.53097726,257.15,257.11,4.72010841]
[1732383904609,7.53097726,257.15,257.12,23.776884]
[1732383907101,7.53097726,257.15,257.1,23.776884]
[1732383907346,7.53097726,257.13,257.09,4.72038783]
[1732383907506,6.092,257.24,257.06,4.72010841]
[1732383907507,7.53097726,257.11,257.06,4.72010841]
[1732383908621,7.53097726,257.07,257.02,21.08158783]
[1732383908839,7.53097726,257.05,257.02,4.72038783]
[1732383909000,30.12390904,257.14,257.02,4.72038783]
[1732383909001,7.53097726,257.03,257.02,4.72038783]
[1732383909205,7.53097726,257.03,256.97,4.72038783]
[1732383910230,7.53097726,257.05,256.97,4.72038783]
[1732383910731,7.53097726,257.05,256.98,7.53097726]
[1732383911635,7.53097726,257.05,256.99,23.776884]
[1732383912021,7.53097726,257.01,256.97,4.72038783]
[1732383912209,7.53097726,256.99,256.97,4.72038783]
[1732383912404,7.53097726,257.01,256.97,4.72038783]
[1732383912611,7.53097726,257.04,256.97,9.17994825]
[1732383913745,20.0,257.12,256.97,9.17994825]
[1732383913912,7.53097726,257.04,256.97,9.17994825]
[1732383914242,7.53097726,257.04,256.97,16.71092551]
[1732383914930,7.53097726,257.02,256.97,4.72038783]
[1732383915111,7.53097726,257.0,256.97,4.72038783]
[1732383915527,20.0,257.1,256.97,4.72038783]
[1732383915740,7.53097726,257.06,256.98,7.53097726]
[1732383916031,7.53097726,257.06,256.99,4.72038783]
[1732383916234,7.53097726,257.05,256.99,4.72038783]
[1732383916431,20.0,257.1,256.99,4.72038783]
[1732383916432,20.0,257.1,257.0,7.53097726]
[1732383916607,7.53097726,257.1,257.02,7.53097726]
[1732383917011,7.53097726,257.1,257.03,7.53097726]
[1732383918211,7.53097726,257.11,257.03,7.53097726]
[1732383918817,7.53097726,257.11,257.04,7.53097726]
[1732383920928,7.53097726,257.15,257.07,7.53097726]
[1732383921940,7.53097726,257.14,257.06,7.53097726]
[1732383922232,7.53097726,257.13,257.04,12.25136509]
[1732383922540,7.53097726,257.09,257.04,4.72038783]
[1732383923319,7.53097726,257.11,257.04,4.72038783]
[1732383923626,7.53097726,257.13,257.05,7.53097726]
[1732383923823,15.8933,257.19,257.05,7.53097726]
[1732383924028,7.53097726,257.15,257.07,7.53097726]
[1732383924939,7.53097726,257.14,257.07,7.53097726]
[1732383925136,7.53097726,257.17,257.05,4.72038783]
[1732383925341,7.53097726,257.15,257.08,7.53097726]
[1732383926455,20.0,257.14,257.08,7.53097726]
[1732383926733,6.2531,257.21,257.08,7.53097726]
[1732383926939,20.0,257.16,257.08,7.53097726]
[1732383927116,20.0,257.16,257.1,7.53097726]
[1732383928141,7.53097726,257.17,257.1,7.53097726]
[1732383928443,20.0,257.16,257.09,7.53097726]
[1732383929242,20.0,257.14,257.07,7.53097726]
[1732383929616,7.53097726,257.13,257.05,12.25136509]
[1732383929845,20.0,257.12,257.05,12.25136509]
[1732383931824,7.53097726,257.15,257.05,12.25136509]
[1732383932145,20.0,257.2,257.09,7.53097726]
[1732383932446,20.0,257.16,257.09,7.53097726]
[1732383933947,20.0,257.14,257.07,7.53097726]
[1732383934253,7.53097726,257.13,257.06,4.72038783]
[1732383935249,7.53097726,257.15,257.07,7.53097726]
[1732383936234,43.776884,257.24,257.09,7.53097726]
[1732383936531,7.53097726,257.19,257.11,7.53097726]
[1732383937551,7.53097726,257.17,257.1,20.94998783]
[1732383940053,20.0,257.29,257.16,7.53097726]
[1732383940229,7.53097726,257.24,257.16,7.53097726]
[1732383940436,7.53097726,257.25,257.16,7.53097726]
[1732383940636,7.53097726,257.27,257.18,7.53097726]
[1732383941237,7.53097726,257.25,257.18,7.53097726]
[1732383942434,6.4019,257.33,257.18,7.53097726]
[1732383942629,7.53097726,257.29,257.2,22.91147726]
[1732383944451,7.53097726,257.27,257.2,22.91147726]
[1732383945958,7.53097726,257.25,257.2,15.3805]
[1732383946761,7.53097726,257.23,257.2,15.3805]
[1732383948260,20.0,257.34,257.2,15.3805]
[1732383948562,7.53097726,257.28,257.2,15.3805]
[1732383949060,20.0,257.27,257.2,15.3805]
[1732383951766,7.53097726,257.26,257.2,15.3805]
[1732383952644,20.0,257.34,257.2,15.3805]
[1732383952962,7.53097726,257.26,257.2,15.3805]
[1732383953448,7.53097726,257.27,257.21,23.776884]
[1732383953636,7.53097726,257.27,257.21,31.30786126]
[1732383955563,7.53097726,257.3,257.22,7.53097726]
[1732383956259,20.0,257.39,257.23,23.776884]
[1732383956443,20.0,257.39,257.24,7.53097726]
[1732383956444,7.53097726,257.31,257.24,7.53097726]
[1732383957069,7.53097726,257.31,257.22,7.53097726]
[1732383957640,7.53097726,257.31,257.23,23.776884]
[1732383958346,20.0,257.39,257.23,23.776884]
[1732383958553,7.53097726,257.33,257.24,7.53097726]
[1732383959055,7.53097726,257.32,257.24,7.53097726]
[1732383959253,20.0,257.39,257.24,7.53097726]
[1732383959559,7.53097726,257.32,257.24,7.53097726]
[1732383960266,7.53097726,257.3,257.23,7.53097726]
[1732383961644,7.53097726,257.28,257.21,23.776884]
[1732383962555,20.0,257.39,257.2,15.3805]
[1732383962770,7.53097726,257.26,257.2,15.3805]
[1732383962950,7.53097726,257.27,257.2,15.3805]
[1732383963652,7.53097726,257.27,257.21,31.30786126]
[1732383965268,20.0,257.39,257.21,31.30786126]
[1732383965572,7.53097726,257.29,257.21,31.30786126]
[1732383966462,20.0,257.39,257.21,23.776884]
[1732383966463,7.53097726,257.25,257.21,23.776884]
[1732383966970,7.53097726,257.23,257.2,15.3805]
[1732383968175,7.53097726,257.25,257.2,15.3805]
[1732383969165,7.53097726,257.23,257.2,15.3805]
[1732383969576,7.53097726,257.21,257.17,4.72038783]
[1732383971984,15.8339,257.34,257.17,4.72038783]
[1732383972185,15.8339,257.34,257.17,16.71092551]
[1732383972186,7.53097726,257.26,257.17,16.71092551]
[1732383972385,20.0,257.25,257.18,28.23644442]
[1732383972690,20.0,257.25,257.19,7.53097726]
[1732383972988,20.0,257.25,257.18,28.23644442]
[1732383973181,20.0,257.25,257.18,35.76742168]
[1732383973478,7.53097726,257.28,257.21,23.776884]
[1732383973993,7.53097726,257.23,257.2,23.776884]
[1732383974190,7.53097726,257.21,257.15,16.5831]
[1732383974394,7.53097726,257.24,257.16,7.53097726]
[1732383974576,23.776884,257.37,257.16,7.53097726]
[1732383974776,20.0,257.24,257.16,12.25136509]
[1732383975179,20.0,257.24,257.16,4.72038783]
[1732383975388,20.0,257.24,257.16,12.25136509]
[1732383975689,20.0,257.24,257.18,7.53097726]
[1732383975864,7.53097726,257.27,257.19,4.72038783]
[1732383976183,7.53097726,257.27,257.2,23.776884]
[1732383976388,7.03097726,257.27,257.2,23.776884]
[1732383976576,7.53097726,257.26,257.2,23.776884]
[1732383976974,7.53097726,257.24,257.2,23.776884]
[1732383977162,7.53097726,257.24,257.19,4.72038783]
[1732383977358,7.53097726,257.22,257.15,16.5831]
[1732383978087,7.53097726,257.2,257.1,11.99053768]
[1732383978866,7.53097726,257.2,257.1,16.45092551]
[1732383979186,7.53097726,257.18,257.1,16.45092551]
[1732383979390,7.53097726,257.16,257.1,8.91994825]
[1732383980069,7.53097726,257.14,257.1,4.46038783]
[1732383980583,7.53097726,257.14,257.09,16.5831]
[1732383980887,7.53097726,257.14,257.04,16.45092551]
[1732383980888,7.53097726,257.12,257.04,8.91994825]
[1732383981383,7.53097726,257.14,257.06,7.53097726]
[1732383981591,7.53097726,257.14,257.06,16.45092551]
[1732383981964,7.53097726,257.16,257.08,7.53097726]
[1732383982165,7.53097726,257.16,257.09,23.776884]
[1732383982386,20.0,257.25,257.09,23.776884]
[1732383982596,7.53097726,257.16,257.09,23.776884]
[1732383983084,15.8339,257.26,257.09,23.776884]
[1732383983085,7.53097726,257.18,257.1,7.53097726]
[1732383983288,7.53097726,257.18,257.11,23.776884]
[1732383983865,7.53097726,257.18,257.1,4.46038783]
[1732383984082,7.53097726,257.16,257.1,4.46038783]
[1732383984789,7.53097726,257.16,257.11,3.61483679]
[1732383984988,7.53097726,257.16,257.12,3.61483679]
[1732383985200,7.53097726,257.16,257.13,3.61483679]
[1732383985378,7.53097726,257.16,257.1,4.46038783]
[1732383985379,7.53097726,257.16,257.14,3.61483679]
[1732383985571,7.53097726,257.16,257.15,3.61483679]
[1732383985980,27.53097726,257.16,257.15,3.61483679]
[1732383988312,7.53097726,257.16,257.15,3.61483679]
[1732383988494,25.8339,257.26,257.15,3.61483679]
[1732383988495,20.0,257.25,257.15,3.61483679]
[1732383988679,7.53097726,257.18,257.16,3.61483679]
[1732383988880,27.53097726,257.18,257.17,3.61483679]
[1732383989102,7.53097726,257.18,257.17,3.61483679]
[1732383992492,20.0,257.25,257.17,3.61483679]
[1732383992684,7.53097726,257.23,257.17,3.61483679]
[1732383992887,7.53097726,257.23,257.18,3.61483679]
[1732383993067,7.53097726,257.23,257.19,3.61483679]
[1732383993387,7.53097726,257.23,257.2,3.61483679]
[1732383993587,7.53097726,257.23,257.1,15.3158]
[1732383993588,30.12390904,257.27,257.21,3.61483679]
[1732383993775,7.53097726,257.22,257.12,7.53097726]
[1732383993978,7.53097726,257.2,257.13,23.776884]
[1732383994690,25.6347,257.33,257.15,7.53097726]
[1732383994892,7.53097726,257.22,257.16,23.776884]
[1732383995103,7.53097726,257.2,257.16,23.776884]
[1732383995494,7.53097726,257.22,257.16,23.776884]
[1732383996276,20.0,257.32,257.16,23.776884]
[1732383996277,7.53097726,257.2,257.16,23.776884]
[1732383997201,7.53097726,257.22,257.16,23.776884]
[1732383997608,7.53097726,257.24,257.16,35.76824909]
[1732383999400,7.53097726,257.24,257.16,28.23727183]
[1732383999579,7.53097726,257.22,257.16,28.23727183]
[1732384008803,7.53097726,257.18,257.1,15.3158]
[1732384008987,7.53097726,257.18,257.1,27.30633768]
[1732384009300,7.53097726,257.18,257.11,4.46038783]
[1732384010312,7.53097726,257.18,257.12,23.776884]
[1732384010490,7.53097726,257.18,257.12,28.23727183]
[1732384012087,7.53097726,257.2,257.12,28.23727183]
[1732384014008,7.53097726,257.2,257.13,3.874]
[1732384014302,7.53097726,257.2,257.12,28.23727183]
[1732384014481,7.53097726,257.21,257.14,23.776884]
[1732384024395,20.0,257.34,257.17,23.776884]
[1732384024611,7.53097726,257.25,257.17,23.776884]
[1732384024908,7.53097726,257.21,257.16,23.776884]
[1732384026097,7.53097726,257.19,257.16,23.776884]
[1732384026595,7.53097726,257.17,257.09,15.6869]
[1732384026794,7.53097726,257.15,257.1,23.776884]
[1732384028192,7.53097726,257.17,257.1,28.23727183]
[1732384028897,7.53097726,257.15,257.1,28.23727183]
[1732384029611,7.53097726,257.13,257.1,28.23727183]
[1732384031501,7.53097726,257.13,257.1,4.46038783]
[1732384032020,7.53097726,257.11,257.1,4.46038783]
[1732384032220,7.53097726,257.11,257.06,4.46038783]
[1732384032611,10.0,257.24,257.06,4.46038783]
[1732384032924,7.53097726,257.09,257.06,4.46038783]
[1732384033118,7.53097726,257.07,257.06,4.46038783]
[1732384036726,7.53097726,257.07,257.01,23.776884]
[1732384036908,7.53097726,257.03,256.95,6.5006]
[1732384037107,7.53097726,256.99,256.93,4.46038783]
[1732384037301,7.53097726,256.97,256.93,4.46038783]
[1732384038223,7.53097726,256.95,256.93,4.46038783]
[1732384040324,7.53097726,256.95,256.85,15.641]
[1732384040529,7.53097726,256.87,256.83,10.76679061]
[1732384040703,7.53097726,256.89,256.83,10.76679061]
[1732384041443,7.53097726,256.91,256.83,18.29776787]
[1732384041747,7.53097726,256.91,256.83,22.40137792]
[1732384041903,7.53097726,256.91,256.84,23.776884]
[1732384042522,20.0,256.99,256.87,7.53097726]
[1732384042715,20.0,256.99,256.89,7.53097726]
[1732384043020,7.53097726,256.96,256.9,4.26619061]
[1732384043333,7.53097726,256.96,256.89,4.10361005]
[1732384045012,7.53097726,256.96,256.89,11.63458731]
[1732384045217,7.53097726,256.98,256.91,7.53097726]
[1732384045538,7.53097726,257.02,256.93,7.53097726]
[1732384045711,7.53097726,257.02,256.95,7.53097726]
[1732384045908,7.53097726,257.04,256.96,23.776884]
[1732384046124,7.53097726,257.06,256.98,23.776884]
[1732384046327,7.53097726,257.06,256.99,7.53097726]
[1732384047837,7.53097726,257.1,257.02,23.776884]
[1732384048732,11.76631164,257.09,257.02,23.776884]
[1732384048916,11.76631164,257.12,257.03,11.76631164]
[1732384049121,11.76631164,257.12,257.04,23.776884]
[1732384050928,11.76631164,257.14,257.06,23.776884]
[1732384051113,11.76631164,257.16,257.1,23.776884]
[1732384052637,11.76631164,257.18,257.1,23.776884]
[1732384053208,11.76631164,257.2,257.12,15.7602]
[1732384053414,11.76631164,257.22,257.14,23.776884]
[1732384054718,11.76631164,257.2,257.14,23.776884]
[1732384054923,11.76631164,257.2,257.13,23.776884]
[1732384061037,11.76631164,257.2,257.12,15.7602]
[1732384062218,11.76631164,257.2,257.12,20.34697672]
[1732384062421,11.76631164,257.2,257.13,35.54319564]
[1732384062628,11.76631164,257.2,257.13,40.12997236]
[1732384064439,11.76631164,257.2,257.13,4.58677672]
[1732384064627,11.76631164,257.18,257.13,4.58677672]
[1732384065336,11.76631164,257.16,257.13,4.58677672]
[1732384067442,11.76631164,257.18,257.13,4.58677672]
[1732384067638,11.76631164,257.2,257.13,4.58677672]
[1732384068651,7.52468381,257.19,257.13,4.58677672]
[1732384069243,7.52468381,257.19,257.14,23.776884]
[1732384072241,22.4904,257.38,257.18,7.52468381]
[1732384072451,7.52468381,257.28,257.2,7.52468381]
[1732384072820,7.52468381,257.28,257.2,12.22420775]
[1732384073024,7.52468381,257.28,257.21,23.776884]
[1732384073829,7.52468381,257.28,257.22,16.0956]
[1732384074025,7.52468381,257.3,257.22,23.62028381]
[1732384074329,7.52468381,257.28,257.22,16.0956]
[1732384075349,7.52468381,257.26,257.22,16.0956]
[1732384075538,7.52468381,257.24,257.22,16.0956]
[1732384077340,7.52468381,257.24,257.2,4.69952394]
[1732384077538,7.52468381,257.24,257.19,4.58677672]
[1732384082456,7.52468381,257.26,257.2,23.776884]
[1732384083456,7.52468381,257.26,257.2,28.36366072]
[1732384086155,20.0,257.25,257.2,28.36366072]
[1732384087442,20.0,257.37,257.2,28.36366072]
[1732384087757,7.52468381,257.25,257.2,28.36366072]
[1732384088963,20.0,257.24,257.2,28.36366072]
[1732384089146,20.0,257.37,257.2,28.36366072]
[1732384089354,7.52468381,257.26,257.2,28.36366072]
[1732384089658,20.0,257.25,257.2,28.36366072]
[1732384090377,20.0,257.28,257.22,23.776884]
[1732384091635,20.0,257.37,257.22,23.776884]
[1732384091953,22.4904,257.38,257.24,23.776884]
[1732384092271,7.52468381,257.3,257.24,23.776884]
[1732384093137,20.0,257.29,257.24,23.776884]
[1732384093339,20.0,257.29,257.23,4.58677672]
[1732384093564,20.0,257.29,257.2,4.69952394]
[1732384093565,7.52468381,257.26,257.21,23.776884]
[1732384093738,7.52468381,257.26,257.2,4.69952394]
[1732384094352,20.0,257.25,257.2,4.69952394]
[1732384098237,20.0,257.37,257.21,23.776884]
[1732384098650,20.0,257.27,257.21,23.776884]
[1732384099643,20.0,257.27,257.21,31.30156781]
[1732384101755,20.0,257.37,257.21,35.88834453]
[1732384102070,20.0,257.28,257.21,35.88834453]
[1732384102767,7.52468381,257.27,257.21,28.36366072]
[1732384103063,20.0,257.26,257.21,4.58677672]
[1732384104765,20.0,257.26,257.22,23.776884]
[1732384110249,7.52468381,257.23,257.22,23.776884]
[1732384110451,7.52468381,257.23,257.2,4.69952394]
[1732384110651,7.52468381,257.23,257.16,20.68237672]
[1732384110851,7.52468381,257.23,257.17,9.28630066]
[1732384111252,20.0,257.2,257.17,9.28630066]
[1732384112466,16.5188,257.34,257.17,9.28630066]
[1732384112656,20.0,257.22,257.17,9.28630066]
[1732384113272,7.52468381,257.23,257.17,9.28630066]
[1732384113586,20.0,257.22,257.17,9.28630066]
[1732384113758,20.0,257.22,257.18,23.776884]
[1732384117581,20.0,257.33,257.19,4.58677672]
[1732384117763,20.0,257.23,257.2,23.776884]
[1732384117963,20.0,257.33,257.2,23.776884]
[1732384117964,7.52468381,257.22,257.2,23.776884]
[1732384118159,20.0,257.21,257.17,7.57819677]
[1732384118360,7.52468381,257.2,257.13,4.58677672]
[1732384118881,7.52468381,257.2,257.14,4.69952394]
[1732384119257,7.52468381,257.2,257.15,4.58677672]
[1732384119861,7.52468381,257.2,257.15,9.28630066]
[1732384120059,7.52468381,257.2,257.16,23.776884]
[1732384121476,20.0,257.19,257.16,28.36366072]
[1732384122078,20.0,257.21,257.16,28.36366072]
[1732384127197,20.0,257.19,257.16,28.36366072]
[1732384127490,7.52468381,257.18,257.16,28.36366072]
[1732384128798,20.0,257.19,257.16,28.36366072]
[1732384128978,20.0,257.21,257.16,28.36366072]
[1732384130203,7.52468381,257.2,257.16,28.36366072]
[1732384130703,20.0,257.19,257.16,28.36366072]
[1732384131990,20.0,257.26,257.16,28.36366072]
[1732384132180,20.0,257.2,257.16,28.36366072]
[1732384132884,20.0,257.2,257.16,33.06318466]
[1732384133090,20.0,257.24,257.17,4.69952394]
[1732384133396,20.0,257.24,257.18,23.776884]
[1732384134401,27.52468381,257.19,257.18,23.776884]
[1732384134606,7.52468381,257.19,257.12,23.776884]
[1732384134811,7.52468381,257.17,257.1,15.81910066]
[1732384135403,7.52468381,257.17,257.1,11.11957672]
[1732384135703,20.0,257.26,257.12,7.52468381]
[1732384135923,20.0,257.26,257.1,6.5328]
[1732384135924,7.52468381,257.22,257.15,23.776884]
[1732384136086,16.5188,257.34,257.17,23.776884]
[1732384136404,7.52468381,257.25,257.17,33.06318466]
[1732384138390,7.52468381,257.23,257.17,33.06318466]
[1732384138813,16.5188,257.34,257.17,33.06318466]
[1732384138814,7.52468381,257.21,257.17,33.06318466]
[1732384139013,7.52468381,257.21,257.17,28.36366072]
[1732384139322,7.52468381,257.19,257.11,4.69952394]
[1732384140008,7.52468381,257.19,257.11,9.28630066]
[1732384140617,20.0,257.18,257.11,9.28630066]
[1732384140988,20.0,257.18,257.12,23.776884]
[1732384141214,7.52468381,257.19,257.12,33.06318466]
[1732384141888,7.52468381,257.19,257.13,4.69952394]
[1732384142215,7.52468381,257.19,257.14,23.776884]
[1732384143209,7.52468381,257.21,257.14,23.776884]
[1732384143626,7.52468381,257.24,257.16,23.776884]
[1732384143821,16.0112,257.31,257.19,7.52468381]
[1732384144033,16.0112,257.31,257.2,23.776884]
[1732384144403,7.52468381,257.28,257.2,23.776884]
[1732384144898,7.52468381,257.26,257.2,23.776884]
[1732384145107,16.0112,257.31,257.2,23.776884]
[1732384145307,7.52468381,257.28,257.21,5.02155449]
[1732384145622,16.0112,257.37,257.24,23.776884]
[1732384145831,7.52468381,257.32,257.24,28.79843849]
[1732384146695,7.52468381,257.3,257.24,28.79843849]
[1732384146900,7.52468381,257.26,257.21,5.11191283]
[1732384147133,7.52468381,257.24,257.22,23.776884]
[1732384147299,16.0112,257.37,257.22,23.776884]
[1732384147300,7.52468381,257.26,257.22,23.776884]
[1732384147495,7.52468381,257.26,257.17,27.7853383]
[1732384147496,7.52468381,257.26,257.17,20.26065449]
[1732384147714,20.0,257.23,257.18,23.776884]
[1732384149901,20.0,257.25,257.2,23.776884]
[1732384150704,7.52468381,257.25,257.2,28.79843849]
[1732384151119,20.0,257.26,257.2,28.79843849]
[1732384152741,16.0112,257.37,257.2,28.79843849]
[1732384152742,20.0,257.24,257.2,28.79843849]
[1732384157840,20.0,257.2,257.13,11.07795449]
[1732384158137,20.0,257.2,257.14,17.65815113]
[1732384158834,20.0,257.22,257.14,17.65815113]
[1732384159034,20.0,257.22,257.15,23.776884]
[1732384159214,20.0,257.22,257.16,5.11191283]
[1732384159530,20.0,257.2,257.17,23.776884]
[1732384161416,20.0,257.33,257.17,23.776884]
[1732384161608,20.0,257.23,257.17,23.776884]
[1732384162929,7.52468381,257.28,257.19,23.776884]
[1732384163240,7.52468381,257.28,257.19,28.79843849]
[1732384164611,7.52468381,257.28,257.21,23.776884]
[1732384165227,20.0,257.27,257.21,23.776884]
[1732384167222,20.0,257.3,257.24,23.776884]
[1732384167946,20.0,257.3,257.23,23.776884]
[1732384168488,20.0,257.3,257.23,5.02155449]
[1732384168626,20.0,257.3,257.24,23.776884]
[1732384170945,20.0,257.28,257.24,23.776884]
[1732384174266,20.0,257.36,257.24,23.776884]
[1732384174548,7.52468381,257.32,257.24,28.79843849]
[1732384174721,20.0,257.31,257.25,5.02155449]
[1732384175148,20.0,257.31,257.26,23.776884]
[1732384175947,20.0,257.31,257.26,5.02155449]
[1732384176137,20.0,257.31,257.27,23.776884]
[1732384176548,20.0,257.31,257.27,23.276884]
[1732384178055,7.52468381,257.3,257.27,23.276884]
[1732384178247,20.0,257.29,257.27,23.276884]
[1732384179663,20.0,257.36,257.27,23.276884]
[1732384179833,20.0,257.31,257.27,23.276884]
[1732384180356,15.0283,257.43,257.27,23.276884]
[1732384180357,7.52468381,257.36,257.3,23.776884]
[1732384180563,7.52468381,257.36,257.3,28.79843849]
[1732384181752,20.0,257.35,257.3,28.79843849]
[1732384182058,20.0,257.33,257.3,28.79843849]
[1732384183058,30.09873524,257.4,257.3,28.79843849]
[1732384183355,15.0283,257.48,257.3,28.79843849]
[1732384183533,7.52468381,257.36,257.31,5.02155449]
[1732384183733,7.52468381,257.36,257.32,23.776884]
[1732384184143,15.0283,257.48,257.32,23.776884]
[1732384184458,20.0,257.35,257.32,23.776884]
[1732384186466,20.0,257.35,257.32,28.79843849]
[1732384188345,20.0,257.35,257.32,36.50992217]
[1732384190166,20.0,257.47,257.32,36.50992217]
[1732384190353,20.0,257.37,257.33,5.02155449]
[1732384190664,20.0,257.33,257.28,16.0698]
[1732384190869,20.0,257.33,257.29,5.02155449]
[1732384191243,20.0,257.35,257.29,5.02155449]
[1732384191845,20.0,257.35,257.3,23.776884]
[1732384192165,20.0,257.33,257.3,23.776884]